[Event "*** SCC Grand Prix: Titled Tuesday Blitz"]
[Site "Chess.com"]
[Date "2020.06.23"]
[Round "3"]
[White "Salem-AR"]
[Black "Firegrizzly"]
[Result "1-0"]
[WhiteElo "2920"]
[BlackElo "2575"]
[TimeControl "180+1"]
[EndTime "10:30:31 PDT"]
[Termination "Salem-AR won on time"]

1. d4 {[%clk 0:03:00.9]} 1... Nf6 {[%clk 0:02:58.8]} 2. c4 {[%clk 0:03:01.7]}
2... e6 {[%clk 0:02:57.4]} 3. Nf3 {[%clk 0:03:00.9]} 3... d5 {[%clk 0:02:57.8]}
4. g3 {[%clk 0:03:01.2]} 4... Bb4+ {[%clk 0:02:56.3]} 5. Bd2 {[%clk 0:03:01.5]}
5... Be7 {[%clk 0:02:56.2]} 6. Bg2 {[%clk 0:03:02]} 6... c6 {[%clk 0:02:56.5]}
7. O-O {[%clk 0:03:01.8]} 7... O-O {[%clk 0:02:56.4]} 8. Qc2 {[%clk 0:03:02.3]}
8... b6 {[%clk 0:02:56.4]} 9. Rd1 {[%clk 0:03:02.3]} 9... Ba6 {[%clk 0:02:53.6]}
10. b3 {[%clk 0:03:02.1]} 10... Nbd7 {[%clk 0:02:52.6]} 11. a4 {[%clk
0:03:02.8]} 11... Qc8 {[%clk 0:02:50.4]} 12. Na3 {[%clk 0:02:51.3]} 12... Qb7
{[%clk 0:02:48.6]} 13. Qb2 {[%clk 0:02:47.7]} 13... Rfc8 {[%clk 0:02:32.4]} 14.
Rac1 {[%clk 0:02:47.6]} 14... Ne4 {[%clk 0:02:24.8]} 15. Be1 {[%clk 0:02:47]}
15... b5 {[%clk 0:01:50.8]} 16. axb5 {[%clk 0:02:39]} 16... cxb5 {[%clk
0:01:49.6]} 17. c5 {[%clk 0:02:39.6]} 17... b4 {[%clk 0:01:38.9]} 18. Nb1 {[%clk
0:02:39.8]} 18... f5 {[%clk 0:01:33.5]} 19. e3 {[%clk 0:02:35.6]} 19... Bf6
{[%clk 0:01:33.4]} 20. Qa2 {[%clk 0:02:32]} 20... Rab8 {[%clk 0:01:25.2]} 21.
Rc2 {[%clk 0:02:29.7]} 21... g5 {[%clk 0:01:17.7]} 22. Qa4 {[%clk 0:02:04.4]}
22... Rc6 {[%clk 0:01:09]} 23. Bxb4 {[%clk 0:01:15.4]} 23... Bb5 {[%clk
0:01:02]} 24. Qa3 {[%clk 0:01:15.5]} 24... Ra6 {[%clk 0:01:01.9]} 25. Qb2 {[%clk
0:00:57.1]} 25... Bc6 {[%clk 0:01:00.7]} 26. Bf1 {[%clk 0:00:57.1]} 26... Bb5
{[%clk 0:00:53.4]} 27. Bxb5 {[%clk 0:00:39.3]} 27... Qxb5 {[%clk 0:00:54.3]} 28.
c6 {[%clk 0:00:29.8]} 28... Rxc6 {[%clk 0:00:49.3]} 29. Rxc6 {[%clk 0:00:30.7]}
29... Qxc6 {[%clk 0:00:49]} 30. Rc1 {[%clk 0:00:29.2]} 30... Qb6 {[%clk
0:00:46.6]} 31. Be1 {[%clk 0:00:28.1]} 31... Kf7 {[%clk 0:00:43.9]} 32. Nbd2
{[%clk 0:00:19.6]} 32... Nd6 {[%clk 0:00:37.7]} 33. h3 {[%clk 0:00:16.5]} 33...
h5 {[%clk 0:00:36.9]} 34. Rc2 {[%clk 0:00:15.7]} 34... g4 {[%clk 0:00:37]} 35.
hxg4 {[%clk 0:00:15.6]} 35... hxg4 {[%clk 0:00:37.9]} 36. Ne5+ {[%clk
0:00:16.2]} 36... Nxe5 {[%clk 0:00:33.2]} 37. dxe5 {[%clk 0:00:17.1]} 37... Bg7
{[%clk 0:00:33.7]} 38. Nf1 {[%clk 0:00:09.1]} 38... Ne4 {[%clk 0:00:32.2]} 39.
Qc1 {[%clk 0:00:08.4]} 39... Kg6 {[%clk 0:00:28]} 40. Rc6 {[%clk 0:00:07.9]}
40... Qxb3 {[%clk 0:00:26.4]} 41. Rxe6+ {[%clk 0:00:08.7]} 41... Kf7 {[%clk
0:00:22.4]} 42. Qc6 {[%clk 0:00:08.7]} 42... Qb7 {[%clk 0:00:20.3]} 43. Qxb7+
{[%clk 0:00:08.4]} 43... Rxb7 {[%clk 0:00:20.3]} 44. Ra6 {[%clk 0:00:08.6]}
44... Bxe5 {[%clk 0:00:18.7]} 45. Nd2 {[%clk 0:00:09.3]} 45... Bb8 {[%clk
0:00:15.1]} 46. Nxe4 {[%clk 0:00:07.9]} 46... dxe4 {[%clk 0:00:15.4]} 47. Bc3
{[%clk 0:00:05.6]} 47... Rb6 {[%clk 0:00:14.6]} 48. Ra5 {[%clk 0:00:06.3]} 48...
Kg6 {[%clk 0:00:13.2]} 49. Bd4 {[%clk 0:00:06.2]} 49... Rb1+ {[%clk 0:00:12.8]}
50. Kg2 {[%clk 0:00:06.4]} 50... Rb7 {[%clk 0:00:13.7]} 51. Ra6+ {[%clk
0:00:06.3]} 51... Kg5 {[%clk 0:00:14]} 52. Bf6+ {[%clk 0:00:05.2]} 52... Kh5
{[%clk 0:00:13.9]} 53. Bd4 {[%clk 0:00:05.5]} 53... Kg5 {[%clk 0:00:10.2]} 54.
Kh2 {[%clk 0:00:05.9]} 54... Rh7+ {[%clk 0:00:08.8]} 55. Kg1 {[%clk 0:00:06.3]}
55... Rh6 {[%clk 0:00:08.8]} 56. Ra5 {[%clk 0:00:05.1]} 56... Rc6 {[%clk
0:00:07.5]} 57. Kg2 {[%clk 0:00:05.3]} 57... a6 {[%clk 0:00:07.2]} 58. Rd5
{[%clk 0:00:04.8]} 58... Bc7 {[%clk 0:00:07.3]} 59. Rd7 {[%clk 0:00:04.9]} 59...
a5 {[%clk 0:00:07]} 60. Rg7+ {[%clk 0:00:04.1]} 60... Kh6 {[%clk 0:00:07]} 61.
Rf7 {[%clk 0:00:04.8]} 61... Kg6 {[%clk 0:00:05.3]} 62. Rg7+ {[%clk 0:00:05.3]}
62... Kh6 {[%clk 0:00:05.8]} 63. Rf7 {[%clk 0:00:05.9]} 63... Kg6 {[%clk
0:00:06]} 64. Rf8 {[%clk 0:00:04.5]} 64... a4 {[%clk 0:00:05.1]} 65. Ra8 {[%clk
0:00:04.6]} 65... Rc4 {[%clk 0:00:05.1]} 66. Ra6+ {[%clk 0:00:05.1]} 66... Kg5
{[%clk 0:00:04.3]} 67. Bf6+ {[%clk 0:00:04.7]} 67... Kh5 {[%clk 0:00:04.6]} 68.
Bg7 {[%clk 0:00:04.9]} 68... f4 {[%clk 0:00:01.2]} 69. gxf4 {[%clk 0:00:04.9]}
1-0

[Event "*** SCC Grand Prix: Titled Tuesday Blitz"]
[Site "Chess.com"]
[Date "2020.06.23"]
[Round "3"]
[White "praveenb2002"]
[Black "Irishchessman16"]
[Result "1/2-1/2"]
[WhiteElo "2766"]
[BlackElo "2453"]
[TimeControl "180+1"]
[EndTime "10:30:34 PDT"]
[Termination "Game drawn - insufficient material"]

1. e4 {[%clk 0:02:15.8]} 1... c5 {[%clk 0:02:59.4]} 2. Nf3 {[%clk 0:02:15.3]}
2... Nc6 {[%clk 0:03:00]} 3. d4 {[%clk 0:02:10.2]} 3... cxd4 {[%clk 0:02:59.6]}
4. Nxd4 {[%clk 0:02:11]} 4... Nf6 {[%clk 0:03:00.2]} 5. Nc3 {[%clk 0:02:11.2]}
5... e5 {[%clk 0:03:00.6]} 6. Ndb5 {[%clk 0:02:07.8]} 6... d6 {[%clk 0:03:01.1]}
7. Bg5 {[%clk 0:02:07.2]} 7... a6 {[%clk 0:03:01.2]} 8. Na3 {[%clk 0:02:06.9]}
8... b5 {[%clk 0:03:01.9]} 9. Bxf6 {[%clk 0:02:06.6]} 9... gxf6 {[%clk
0:03:01.1]} 10. Nd5 {[%clk 0:02:06.9]} 10... Bg7 {[%clk 0:02:58.4]} 11. Bd3
{[%clk 0:02:06]} 11... O-O {[%clk 0:02:55.6]} 12. O-O {[%clk 0:01:59.2]} 12...
Ne7 {[%clk 0:02:53.6]} 13. Nxe7+ {[%clk 0:01:58.6]} 13... Qxe7 {[%clk
0:02:53.6]} 14. c4 {[%clk 0:01:59.2]} 14... f5 {[%clk 0:02:51]} 15. Qh5 {[%clk
0:01:56.9]} 15... f4 {[%clk 0:02:42.5]} 16. cxb5 {[%clk 0:01:52.3]} 16... d5
{[%clk 0:02:24.1]} 17. exd5 {[%clk 0:01:47.2]} 17... e4 {[%clk 0:02:21.9]} 18.
Rae1 {[%clk 0:01:45.9]} 18... f5 {[%clk 0:02:21.5]} 19. Nc4 {[%clk 0:01:31.1]}
19... Qc5 {[%clk 0:02:14]} 20. Be2 {[%clk 0:01:19.1]} 20... axb5 {[%clk
0:02:12]} 21. Nd2 {[%clk 0:01:18.1]} 21... Rxa2 {[%clk 0:02:09.6]} 22. Rc1
{[%clk 0:01:12.3]} 22... Qd4 {[%clk 0:02:02.6]} 23. Rfd1 {[%clk 0:01:04.3]}
23... Qxb2 {[%clk 0:01:43.8]} 24. Rb1 {[%clk 0:00:50.2]} 24... Qc2 {[%clk
0:01:25.2]} 25. Rbc1 {[%clk 0:00:48.8]} 25... Qa4 {[%clk 0:01:23]} 26. d6 {[%clk
0:00:44.3]} 26... Be6 {[%clk 0:01:18.3]} 27. Rc7 {[%clk 0:00:40.1]} 27... Qd4
{[%clk 0:00:51.2]} 28. Nf3 {[%clk 0:00:32.3]} 28... exf3 {[%clk 0:00:41.1]} 29.
Bxf3 {[%clk 0:00:25.3]} 29... Ra1 {[%clk 0:00:38.1]} 30. h3 {[%clk 0:00:17.2]}
30... Rxd1+ {[%clk 0:00:38.3]} 31. Bxd1 {[%clk 0:00:18.1]} 31... Qxd6 {[%clk
0:00:33.5]} 32. Rb7 {[%clk 0:00:18.2]} 32... Rd8 {[%clk 0:00:32.4]} 33. Be2
{[%clk 0:00:16.3]} 33... f3 {[%clk 0:00:31.7]} 34. Bxf3 {[%clk 0:00:11.6]} 34...
Qd4 {[%clk 0:00:30.7]} 35. Qg5 {[%clk 0:00:07.1]} 35... Qa1+ {[%clk 0:00:27.8]}
36. Kh2 {[%clk 0:00:07.4]} 36... Qe5+ {[%clk 0:00:27.6]} 37. g3 {[%clk
0:00:07.9]} 37... Rf8 {[%clk 0:00:17.9]} 38. Bc6 {[%clk 0:00:05.5]} 38... f4
{[%clk 0:00:16.1]} 39. Qxe5 {[%clk 0:00:02.9]} 39... Bxe5 {[%clk 0:00:15.8]} 40.
Rxb5 {[%clk 0:00:03.1]} 40... fxg3+ {[%clk 0:00:15.6]} 41. fxg3 {[%clk
0:00:03.5]} 41... Bd6 {[%clk 0:00:14.7]} 42. Bg2 {[%clk 0:00:02.7]} 42... Rf6
{[%clk 0:00:14]} 43. Rb2 {[%clk 0:00:02]} 43... Kg7 {[%clk 0:00:14.1]} 44. Rd2
{[%clk 0:00:02.3]} 44... Be5 {[%clk 0:00:13.6]} 45. Rd3 {[%clk 0:00:02.8]} 45...
Rg6 {[%clk 0:00:13.3]} 46. Re3 {[%clk 0:00:03.2]} 46... Kf6 {[%clk 0:00:13.6]}
47. Rf3+ {[%clk 0:00:02.9]} 47... Ke7 {[%clk 0:00:13.2]} 48. Re3 {[%clk
0:00:02.5]} 48... Bd6 {[%clk 0:00:13.4]} 49. h4 {[%clk 0:00:01.6]} 49... Rg4
{[%clk 0:00:13]} 50. Bh3 {[%clk 0:00:01.8]} 50... Rg6 {[%clk 0:00:10.6]} 51. h5
{[%clk 0:00:01.6]} 51... Rf6 {[%clk 0:00:09.8]} 52. Rxe6+ {[%clk 0:00:01.5]}
52... Rxe6 {[%clk 0:00:09.6]} 53. Bxe6 {[%clk 0:00:02.4]} 53... Kxe6 {[%clk
0:00:10.2]} 54. Kh3 {[%clk 0:00:03.3]} 54... Kf6 {[%clk 0:00:10.7]} 55. Kg2
{[%clk 0:00:03.7]} 55... Kg5 {[%clk 0:00:10.9]} 56. Kh1 {[%clk 0:00:04.6]} 56...
Kxh5 {[%clk 0:00:09.7]} 57. Kg1 {[%clk 0:00:05.5]} 57... Kg4 {[%clk 0:00:10.2]}
58. Kh1 {[%clk 0:00:06.4]} 58... Kh3 {[%clk 0:00:09.9]} 59. Kg1 {[%clk
0:00:06.7]} 59... h5 {[%clk 0:00:09.9]} 60. Kh1 {[%clk 0:00:07.6]} 60... Be7
{[%clk 0:00:05]} 61. Kg1 {[%clk 0:00:07.6]} 61... Kg4 {[%clk 0:00:04.9]} 62. Kh1
{[%clk 0:00:08.5]} 62... Bc5 {[%clk 0:00:03.7]} 63. Kg2 {[%clk 0:00:07]} 63...
Bd4 {[%clk 0:00:03]} 64. Kh1 {[%clk 0:00:07.3]} 64... Kf3 {[%clk 0:00:03.3]} 65.
Kh2 {[%clk 0:00:07]} 65... Kf2 {[%clk 0:00:02]} 66. Kh3 {[%clk 0:00:06.9]} 66...
Kf3 {[%clk 0:00:02]} 67. Kh4 {[%clk 0:00:06.8]} 67... Bf2 {[%clk 0:00:01.4]} 68.
Kxh5 {[%clk 0:00:07.7]} 68... Bxg3 {[%clk 0:00:01.8]} 1/2-1/2

[Event "*** SCC Grand Prix: Titled Tuesday Blitz"]
[Site "Chess.com"]
[Date "2020.06.23"]
[Round "3"]
[White "albano87"]
[Black "Valuebet2000"]
[Result "1-0"]
[WhiteElo "2354"]
[BlackElo "2519"]
[TimeControl "180+1"]
[EndTime "10:30:52 PDT"]
[Termination "albano87 won on time"]

1. d4 {[%clk 0:03:00.9]} 1... Nf6 {[%clk 0:02:57.5]} 2. Nf3 {[%clk 0:03:01]}
2... d5 {[%clk 0:02:56.9]} 3. g3 {[%clk 0:03:01.5]} 3... e6 {[%clk 0:02:56.9]}
4. Bg2 {[%clk 0:03:02]} 4... Be7 {[%clk 0:02:57.4]} 5. O-O {[%clk 0:03:02.5]}
5... O-O {[%clk 0:02:57.9]} 6. c4 {[%clk 0:03:02.9]} 6... dxc4 {[%clk
0:02:56.4]} 7. Qc2 {[%clk 0:03:02.3]} 7... a6 {[%clk 0:02:56.4]} 8. a4 {[%clk
0:03:02.7]} 8... Bd7 {[%clk 0:02:56.8]} 9. Rd1 {[%clk 0:03:02.7]} 9... Bc6
{[%clk 0:02:56.3]} 10. Nc3 {[%clk 0:03:03]} 10... Bxf3 {[%clk 0:02:43.4]} 11.
Bxf3 {[%clk 0:03:03.9]} 11... c6 {[%clk 0:02:43.7]} 12. a5 {[%clk 0:02:57.9]}
12... Nd5 {[%clk 0:02:39.2]} 13. Qa4 {[%clk 0:02:43.4]} 13... Nb4 {[%clk
0:02:28.8]} 14. Bd2 {[%clk 0:02:31.7]} 14... Nd7 {[%clk 0:02:27.9]} 15. Ne4
{[%clk 0:02:30.1]} 15... Nd5 {[%clk 0:02:21.9]} 16. Qxc4 {[%clk 0:02:29.6]}
16... e5 {[%clk 0:02:19.8]} 17. Bc3 {[%clk 0:02:20]} 17... exd4 {[%clk
0:02:18.4]} 18. Bxd4 {[%clk 0:02:19.9]} 18... Qc7 {[%clk 0:02:14.8]} 19. Rac1
{[%clk 0:02:18.1]} 19... Rac8 {[%clk 0:02:06.4]} 20. Nc3 {[%clk 0:02:13.7]}
20... Nxc3 {[%clk 0:02:02.5]} 21. Qxc3 {[%clk 0:02:06.7]} 21... Bf6 {[%clk
0:02:01.8]} 22. Bg4 {[%clk 0:02:03.4]} 22... Rcd8 {[%clk 0:01:56.1]} 23. Bxd7
{[%clk 0:02:01.2]} 23... Qxd7 {[%clk 0:01:43.7]} 24. Bxf6 {[%clk 0:02:00.7]}
24... Qxd1+ {[%clk 0:01:42.1]} 25. Rxd1 {[%clk 0:02:01.6]} 25... Rxd1+ {[%clk
0:01:42.6]} 26. Kg2 {[%clk 0:02:02]} 26... gxf6 {[%clk 0:01:43.5]} 27. Qxf6
{[%clk 0:02:02.4]} 27... Rd5 {[%clk 0:01:44.4]} 28. h4 {[%clk 0:01:55.6]} 28...
Re8 {[%clk 0:01:41.6]} 29. e3 {[%clk 0:01:47.7]} 29... Rxa5 {[%clk 0:01:16.4]}
30. g4 {[%clk 0:01:46.3]} 30... Rd5 {[%clk 0:01:08.3]} 31. h5 {[%clk 0:01:44.2]}
31... Re6 {[%clk 0:01:08.3]} 32. Qf4 {[%clk 0:01:44.4]} 32... h6 {[%clk
0:01:08.4]} 33. Qb8+ {[%clk 0:01:42.9]} 33... Kg7 {[%clk 0:01:08.1]} 34. Qxb7
{[%clk 0:01:43.8]} 34... Rb5 {[%clk 0:01:03.3]} 35. Qxa6 {[%clk 0:01:41.9]}
35... Kg8 {[%clk 0:00:54.7]} 36. Qa3 {[%clk 0:01:36.4]} 36... Kg7 {[%clk
0:00:49]} 37. Qc3+ {[%clk 0:01:35]} 37... Kg8 {[%clk 0:00:47.9]} 38. Kg3 {[%clk
0:01:34.8]} 38... Rbe5 {[%clk 0:00:45.8]} 39. Qd4 {[%clk 0:01:33.1]} 39... Rd5
{[%clk 0:00:42.7]} 40. Qf4 {[%clk 0:01:31.6]} 40... Rde5 {[%clk 0:00:41.2]} 41.
Qc4 {[%clk 0:01:15.5]} 41... Rd5 {[%clk 0:00:40.8]} 42. e4 {[%clk 0:01:14.6]}
42... Rde5 {[%clk 0:00:36.5]} 43. f3 {[%clk 0:01:14]} 43... Rb5 {[%clk
0:00:36.5]} 44. b4 {[%clk 0:01:12.9]} 44... Rbe5 {[%clk 0:00:36.2]} 45. Qd4
{[%clk 0:01:10]} 45... Kh7 {[%clk 0:00:32.8]} 46. Kf2 {[%clk 0:01:01.1]} 46...
Rb5 {[%clk 0:00:25.3]} 47. f4 {[%clk 0:00:59.5]} 47... Kg8 {[%clk 0:00:20.8]}
48. f5 {[%clk 0:00:58.3]} 48... Ree5 {[%clk 0:00:15.6]} 49. Kf3 {[%clk 0:00:57]}
49... Re8 {[%clk 0:00:11.7]} 50. Qd6 {[%clk 0:00:53.7]} 50... Kg7 {[%clk
0:00:07.5]} 51. Qxc6 {[%clk 0:00:51.1]} 51... Reb8 {[%clk 0:00:07.7]} 52. Qd6
{[%clk 0:00:45.1]} 52... R8b6 {[%clk 0:00:06.6]} 53. Qd4+ {[%clk 0:00:44]} 53...
Kh7 {[%clk 0:00:06]} 54. Kf4 {[%clk 0:00:38.8]} 54... Rxb4 {[%clk 0:00:06]} 55.
Qd7 {[%clk 0:00:39]} 55... Rb7 {[%clk 0:00:06.6]} 56. Qe8 {[%clk 0:00:37.2]}
56... Kg7 {[%clk 0:00:05.5]} 57. g5 {[%clk 0:00:36.9]} 57... hxg5+ {[%clk
0:00:05.2]} 58. Kxg5 {[%clk 0:00:37.8]} 58... R4b5 {[%clk 0:00:03.5]} 59. h6+
{[%clk 0:00:36.7]} 59... Kh7 {[%clk 0:00:03.7]} 60. Qf8 {[%clk 0:00:36.2]} 60...
f6+ {[%clk 0:00:03.7]} 61. Qxf6 {[%clk 0:00:32.8]} 61... R5b6 {[%clk 0:00:04.3]}
62. Qf8 {[%clk 0:00:31.8]} 62... Rc6 {[%clk 0:00:03.8]} 63. e5 {[%clk
0:00:26.3]} 63... Rc1 {[%clk 0:00:03.7]} 64. e6 {[%clk 0:00:20.5]} 64... Rg1+
{[%clk 0:00:03.8]} 65. Kf6 {[%clk 0:00:20.4]} 65... Rg8 {[%clk 0:00:03.4]} 66.
Qd6 {[%clk 0:00:09.9]} 66... Rgb8 {[%clk 0:00:03.6]} 67. e7 {[%clk 0:00:09]}
67... Rb6 {[%clk 0:00:04]} 68. Ke6 {[%clk 0:00:08.6]} 68... Rxd6+ {[%clk
0:00:03.6]} 69. Kxd6 {[%clk 0:00:08.5]} 69... Kxh6 {[%clk 0:00:04.3]} 70. f6
{[%clk 0:00:06.8]} 70... Kg6 {[%clk 0:00:04.7]} 71. Ke6 {[%clk 0:00:07.7]} 71...
Rb6+ {[%clk 0:00:04.8]} 72. Kd7 {[%clk 0:00:07.8]} 72... Kxf6 {[%clk 0:00:01.5]}
73. e8=Q {[%clk 0:00:06.5]} 73... Rb7+ {[%clk 0:00:02]} 74. Kc6 {[%clk 0:00:06]}
74... Rf7 {[%clk 0:00:02.3]} 75. Qe4 {[%clk 0:00:04.7]} 75... Kg5 {[%clk
0:00:02]} 76. Qg2+ {[%clk 0:00:04.6]} 76... Kf6 {[%clk 0:00:02]} 77. Kd6 {[%clk
0:00:05.1]} 1-0

[Event "*** SCC Grand Prix: Titled Tuesday Blitz"]
[Site "Chess.com"]
[Date "2020.06.23"]
[Round "3"]
[White "Manukyan_Artak"]
[Black "KingChess345"]
[Result "0-1"]
[WhiteElo "2336"]
[BlackElo "2184"]
[TimeControl "180+1"]
[EndTime "10:30:52 PDT"]
[Termination "KingChess345 won by resignation"]

1. e4 {[%clk 0:03:00.9]} 1... c5 {[%clk 0:03:00.3]} 2. Nf3 {[%clk 0:03:00.3]}
2... Nc6 {[%clk 0:03:00.8]} 3. c3 {[%clk 0:03:00]} 3... d5 {[%clk 0:03:00.1]} 4.
exd5 {[%clk 0:03:00]} 4... Qxd5 {[%clk 0:03:01]} 5. d4 {[%clk 0:03:00.3]} 5...
Bg4 {[%clk 0:03:00.7]} 6. Be2 {[%clk 0:02:59.7]} 6... cxd4 {[%clk 0:03:00.3]} 7.
cxd4 {[%clk 0:02:59.1]} 7... e6 {[%clk 0:02:56.9]} 8. h3 {[%clk 0:02:59.2]} 8...
Bh5 {[%clk 0:02:56.1]} 9. Nc3 {[%clk 0:02:59.2]} 9... Qd6 {[%clk 0:02:56.4]} 10.
Nb5 {[%clk 0:02:52.7]} 10... Qd8 {[%clk 0:02:46.1]} 11. Bf4 {[%clk 0:02:50]}
11... Rc8 {[%clk 0:02:45.7]} 12. O-O {[%clk 0:02:34.8]} 12... a6 {[%clk
0:02:41.9]} 13. Nc3 {[%clk 0:02:33.4]} 13... Nf6 {[%clk 0:02:41.8]} 14. Qb3
{[%clk 0:02:24.1]} 14... b5 {[%clk 0:02:32.5]} 15. Rad1 {[%clk 0:02:14.9]} 15...
Bxf3 {[%clk 0:02:18.7]} 16. Bxf3 {[%clk 0:02:07.1]} 16... Nxd4 {[%clk
0:02:15.8]} 17. Rxd4 {[%clk 0:01:57.2]} 17... Qxd4 {[%clk 0:02:13.6]} 18. Ne2
{[%clk 0:01:45.2]} 18... Qc4 {[%clk 0:02:06.4]} 19. Qe3 {[%clk 0:01:39.5]} 19...
Bc5 {[%clk 0:02:02.1]} 20. Qe5 {[%clk 0:01:33.4]} 20... O-O {[%clk 0:00:38.4]}
21. Rc1 {[%clk 0:01:30.6]} 21... Nd7 {[%clk 0:00:38.7]} 22. Qg5 {[%clk 0:01:14]}
22... Qd3 {[%clk 0:00:35.4]} 23. Ng3 {[%clk 0:01:07.3]} 23... Qg6 {[%clk
0:00:33.7]} 24. Qh4 {[%clk 0:00:59.4]} 24... e5 {[%clk 0:00:20.9]} 25. Be4
{[%clk 0:00:35.6]} 25... f5 {[%clk 0:00:19.7]} 26. Bd5+ {[%clk 0:00:33.2]} 26...
Kh8 {[%clk 0:00:19.7]} 27. Bg5 {[%clk 0:00:32]} 27... f4 {[%clk 0:00:18.6]} 28.
Ne4 {[%clk 0:00:29.1]} 28... Bxf2+ {[%clk 0:00:16.6]} 29. Qxf2 {[%clk
0:00:26.3]} 29... Rxc1+ {[%clk 0:00:16.7]} 30. Kh2 {[%clk 0:00:27.2]} 30... Rd1
{[%clk 0:00:14.8]} 31. Nc3 {[%clk 0:00:26.1]} 31... Rd4 {[%clk 0:00:13.5]} 32.
Be7 {[%clk 0:00:25.3]} 32... Re8 {[%clk 0:00:12.8]} 33. Qh4 {[%clk 0:00:16.1]}
33... Nf6 {[%clk 0:00:11.7]} 34. Bxf6 {[%clk 0:00:15.6]} 34... Qxf6 {[%clk
0:00:12.2]} 35. Qh5 {[%clk 0:00:15.1]} 35... g6 {[%clk 0:00:10.4]} 36. Qh6
{[%clk 0:00:14.7]} 36... Rd8 {[%clk 0:00:10.4]} 37. Bf3 {[%clk 0:00:14.5]} 37...
Rd2 {[%clk 0:00:07.3]} 38. Ne4 {[%clk 0:00:14.2]} 38... Qg7 {[%clk 0:00:06.4]}
39. Qh4 {[%clk 0:00:13.2]} 39... R2d7 {[%clk 0:00:06.1]} 40. Nf6 {[%clk
0:00:12.9]} 40... Re7 {[%clk 0:00:04.7]} 41. Be4 {[%clk 0:00:11.4]} 41... Rf8
{[%clk 0:00:03.6]} 42. Ng4 {[%clk 0:00:11.3]} 42... Ref7 {[%clk 0:00:03.9]} 43.
Nh6 {[%clk 0:00:11.3]} 43... g5 {[%clk 0:00:03.8]} 44. Nxf7+ {[%clk 0:00:11]}
44... Rxf7 {[%clk 0:00:04.7]} 45. Qg4 {[%clk 0:00:11.4]} 45... Rf8 {[%clk
0:00:04.8]} 46. Qe6 {[%clk 0:00:11.4]} 46... Qf7 {[%clk 0:00:04.5]} 47. Qxe5+
{[%clk 0:00:11.2]} 47... Qf6 {[%clk 0:00:04.8]} 48. Qc7 {[%clk 0:00:10.8]} 48...
Qf7 {[%clk 0:00:04.5]} 49. Qe5+ {[%clk 0:00:10.6]} 49... Qf6 {[%clk 0:00:04.9]}
50. Qc7 {[%clk 0:00:10.2]} 50... Rf7 {[%clk 0:00:05.3]} 51. Qc8+ {[%clk
0:00:10]} 51... Kg7 {[%clk 0:00:05.8]} 52. Bf3 {[%clk 0:00:08]} 52... Qe5 {[%clk
0:00:06.1]} 53. Qg4 {[%clk 0:00:08.2]} 53... h6 {[%clk 0:00:06.2]} 54. h4 {[%clk
0:00:08.3]} 54... Qf6 {[%clk 0:00:04.8]} 55. hxg5 {[%clk 0:00:07.6]} 55... Qxg5
{[%clk 0:00:05.7]} 56. Qe6 {[%clk 0:00:07.5]} 56... Qg3+ {[%clk 0:00:05.8]} 57.
Kg1 {[%clk 0:00:07]} 57... Rf6 {[%clk 0:00:06.7]} 58. Qe7+ {[%clk 0:00:07.1]}
58... Rf7 {[%clk 0:00:07.1]} 59. Qe5+ {[%clk 0:00:06.9]} 59... Kf8 {[%clk
0:00:07.5]} 60. Qd6+ {[%clk 0:00:06.1]} 60... Re7 {[%clk 0:00:06.9]} 61. Qf6+
{[%clk 0:00:05.3]} 61... Ke8 {[%clk 0:00:07.1]} 62. Bh5+ {[%clk 0:00:05.5]}
62... Kd7 {[%clk 0:00:06.9]} 63. Qd4+ {[%clk 0:00:05.7]} 63... Ke6 {[%clk
0:00:05.3]} 64. Qe4+ {[%clk 0:00:05.7]} 64... Kf6 {[%clk 0:00:05.2]} 65. Qc6+
{[%clk 0:00:05.8]} 65... Re6 {[%clk 0:00:05.1]} 66. Qc3+ {[%clk 0:00:06.2]}
66... Qxc3 {[%clk 0:00:04.5]} 67. bxc3 {[%clk 0:00:05.8]} 67... Kg5 {[%clk
0:00:04.7]} 68. Bf3 {[%clk 0:00:05.4]} 68... Re1+ {[%clk 0:00:05]} 69. Kf2
{[%clk 0:00:05.4]} 69... Ra1 {[%clk 0:00:05.9]} 70. Bd5 {[%clk 0:00:05.8]} 70...
Rb1 {[%clk 0:00:05.8]} 71. c4 {[%clk 0:00:06.1]} 71... Rb2+ {[%clk 0:00:04.2]}
72. Kf3 {[%clk 0:00:05.8]} 72... b4 {[%clk 0:00:04.3]} 73. c5 {[%clk 0:00:05.8]}
73... Rc2 {[%clk 0:00:04.5]} 74. c6 {[%clk 0:00:05.6]} 74... a5 {[%clk
0:00:04.8]} 75. Ke4 {[%clk 0:00:05.7]} 75... a4 {[%clk 0:00:05]} 76. Kd4 {[%clk
0:00:05.9]} 76... b3 {[%clk 0:00:04.9]} 77. axb3 {[%clk 0:00:05.3]} 77... axb3
{[%clk 0:00:05.8]} 78. Bxb3 {[%clk 0:00:04.9]} 78... Rxc6 {[%clk 0:00:05.8]} 79.
Bd5 {[%clk 0:00:05.8]} 79... Rb6 {[%clk 0:00:05.9]} 80. Bf3 {[%clk 0:00:05.6]}
80... Rb2 {[%clk 0:00:06.1]} 81. Ke4 {[%clk 0:00:05.6]} 81... h5 {[%clk
0:00:06.5]} 82. g3 {[%clk 0:00:05.8]} 82... fxg3 {[%clk 0:00:06.2]} 0-1